[Event "BL 2024-25"]
[Site "Austria"]
[Date "2024.10.10"]
[Round "2.29"]
[White "Gschnitzer, Adrian"]
[Black "Platzgummer, Fabian"]
[Result "1/2-1/2"]
[Annotator "TA"]
[ECO "E24"]
[WhiteElo "2449"]
[BlackElo "2301"]
[PlyCount "116"]
[EventDate "2024.08.28"]
[EventType "team-tourn"]
[EventCountry "AUT"]
[SourceTitle "playchess.com"]
[Source "ChessBase"]
[SourceQuality "1"]
[WhiteTeam "Fuerstenfeld-Hartberg"]
[BlackTeam "Mayrhofen-Zell-Ziller"]
[TimeControl "40/5400+30:1800+30"]

{[%evp 52,116,-188,-240,-248,-235,-216,-212,-224,-387,-380,-388,-281,-355,-241,-251,0,0,0,0,0,0,134,134,143,133,320,298,352,16,34,18,20,20,25,-20,224,220,273,231,270,291,250,231,520,583,583,583,583,583,583,395,583,583,583,583,566,0,0,0,0,0,0,0,0,0,0]} 1. d4 {[%emt 0:00:08]} Nf6 {[%emt 0:01:26]} 2. c4 {[%emt 0:00:15]} e6 {[%emt 0:00:23]} 3. Nc3 {[%emt 0:00:20]} Bb4 {[%emt 0:01:44]} 4. a3 {[%emt 0:00:12]} Bxc3+ {[%emt 0:00:14]} 5. bxc3 {[%emt 0:00:07]} Nc6 {[%emt 0:02:04]} 6. f3 {[%emt 0:01:52]} b6 {[%emt 0:14:27]} 7. e4 {[%emt 0:02:37]} d6 {[%emt 0:09:32]} 8. Bg5 {[%emt 0:08:56]} h6 {[%emt 0:01:39]} 9. Bh4 {[%emt 0:00:22]} g5 {[%emt 0:01:03]} 10. Bf2 {[%emt 0:00:13]} Nh5 {[%emt 0:02:04]} 11. h4 {[%emt 0:01:38]} Qf6 {[%emt 0:01:12]} 12. g3 {[%emt 0:09:26]} Qg7 {[%emt 0:09:17]} 13. hxg5 {[%emt 0:14:14]} hxg5 {[%emt 0:00:39]} 14. f4 {[%emt 0:06:19]} g4 {[%emt 0:09:30]} 15. e5 {[%emt 0:12:40]} Bb7 {[%emt 0:14:45]} 16. Rh4 {[%emt 0:00:25]} f5 {[%emt 0:08:51]} 17. d5 {[%emt 0:00:31]} Na5 {[%emt 0:07:49]} 18. Qa4+ {[%emt 0:17:25]} Qd7 {[%emt 0:04:14]} 19. Qxd7+ {[%emt 0:00:08]} Kxd7 {[%emt 0:00:01]} 20. O-O-O {[%emt 0:01:18]} dxe5 {[%emt 0:02:26]} 21. fxe5 {[%emt 0:00:27]} Ng7 {[%emt 0:00:25]} 22. dxe6+ {[%emt 0:04:03]} Kxe6 {[%emt 0:00:32]} 23. Ne2 {[%emt 0:00:05]} Rxh4 {[%emt 0:02:53]} 24. Nf4+ {[%emt 0:00:27]} Ke7 {[%emt 0:00:26]} 25. gxh4 {[%emt 0:00:29]} Bf3 {[%emt 0:01:25]} 26. Re1 {[%emt 0:06:29]} Ne6 {[%emt 0:00:34]} 27. Nd5+ {[%emt 0:04:38]} (27. Be3 $142) 27... Kf7 $19 {[%emt 0:00:10]} 28. Bd3 {[%emt 0:00:41]} c6 {[%emt 0:01:21]} 29. Nf6 {[%emt 0:00:32]} f4 {[%emt 0:00:21]} 30. h5 $2 {[%emt 0:01:56]} (30. Rf1) 30... g3 $19 {[%emt 0:00:22]} 31. Bg1 {[%emt 0:00:00]} Rd8 {[%emt 0:02:05]} 32. Bg6+ {[%emt 0:00:02]} Ke7 {[%emt 0:00:06]} 33. h6 {[%emt 0:00:50]} Bg2 $2 {[%emt 0:01:23]} ({Black should try} 33... Nxc4 $19 34. h7 Rh8 (34... Nxa3 $2 35. Ng8+ Kd7 36. h8=Q $18)) 34. h7 $11 {[%emt 0:00:50]} Rh8 $1 {[%emt 0:00:11]} 35. Rd1 {[%emt 0:01:35]} Nf8 {[%emt 0:00:11]} 36. Bf5 {[%emt 0:02:14]} Nxc4 {[%emt 0:01:02]} (36... f3 $11 {keeps the balance.} 37. Be3 f2 (37... Nxc4 $2 38. Bg5 $18)) 37. Ng8+ $1 $16 {[%emt 0:00:27]} Ke8 {[%emt 0:00:24]} 38. e6 $1 {[%emt 0:01:11]} Rxh7 $2 {[%emt 0:01:33]} (38... Nxa3 39. Rd7 (39. e7 Bd5 $18) 39... Nxd7 40. exd7+ (40. Bg6+ Kd8 $18) 40... Kd8 41. Bd4 Kc7 42. Be5+ (42. Bxh8 c5 $18) 42... Kb7 43. d8=Q (43. d8=R Ka6 $18)) (38... Nxh7 39. Rd8+ (39. Bg6+ Kf8 40. e7+ Kxg8 41. e8=Q+ Kg7 42. Qf7+ Kh6 43. Bd4 Bh3 44. Qg7+ Kg5 45. Bf7+ Kh4 46. Qh6+ Kg4 47. Qh5#) 39... Kxd8 40. e7+ Ke8 41. Bg6+ Kd7 42. e8=Q+ (42. e8=R $2 f3 $19) 42... Kc7 43. Bf5 (43. Qf7+ Kb8 $18) 43... Rxg8 44. Qf7+ (44. Qxg8 Nd6 45. Qg7+ Kb8 46. Qe5 Nf8 47. Qxd6+ Kb7 48. Qe7+ Nd7 49. Qxd7+ Ka6 50. Bd3+ b5 51. Qxa7#) 44... Kb8 45. Qxg8+) (38... Bd5 $16 39. e7 (39. Bd4 Rxh7 40. Nf6+ Ke7 $15) 39... f3 (39... Nxa3 $2 40. exf8=N Kxf8 41. Nf6 $18) (39... Bxg8 $2 40. exf8=R+ Kxf8 41. Rd8+ Kf7 42. Rxg8 $18) (39... Nxh7 40. Bg6+ Kd7 41. Rxd5+ cxd5 42. e8=Q+ Kc7 43. Bf5 Rxg8 44. Qf7+ Kb8 45. Qxg8+)) 39. Bxh7 $18 {[%emt 0:01:35]} (39. Nf6+ Ke7 40. Ng8+ (40. Nxh7 Bd5 $18) 40... Ke8 41. Bxh7 (41. Nf6+ Ke7 $18) 41... Bd5 (41... Nxh7 $2 42. Rd7 $18)) 39... Nxe6 {[%emt 0:00:07] [#]} (39... Nxh7 40. Rd7 Bh3 (40... Be4 $2 41. Rb7 $18) 41. Rxh7 $18) 40. Be4 $2 {[%emt 0:02:15]} ({Less strong is} 40. Bg6+ Kf8 41. Re1 Bh3 $16) ({Only move:} 40. Bf5 $1 $18 {[%cal Rf5e6][%mdl 512]}) 40... Bxe4 $11 {[%emt 0:00:45]} 41. Nf6+ {[%emt 0:30:35]} Kf7 {[%emt 0:30:03]} 42. Nxe4 {[%emt 0:00:16]} Kg6 $1 {[%emt 0:00:19]} 43. Nd6 {[%emt 0:00:00]} Nxa3 $2 {[%emt 0:00:00]} (43... Ne5 $11) 44. Kd2 $1 $18 {[%emt 0:00:00]} Nb5 {[%emt 0:00:00] [#]} 45. Nxb5 $1 {[%emt 0:00:00]} cxb5 {[%emt 0:00:00] [#]} 46. Ra1 $1 {[%emt 0:00:00]} Ng5 {[%emt 0:00:00]} 47. Bd4 {[%emt 0:00:00]} (47. Rxa7 Nf3+ 48. Ke2 Nxg1+ 49. Kf1 Nh3 $19) 47... Kf5 $2 {[%emt 0:00:00]} (47... a5 48. Bxb6 b4) 48. Rxa7 $18 {[%emt 0:00:00]} Ke4 {[%emt 0:00:00]} 49. Bxb6 {[%emt 0:00:00]} Kf3 {[%emt 0:00:00]} 50. Rg7 {[%emt 0:00:51]} Ne4+ {[%emt 0:00:00]} 51. Kd3 {[%emt 0:00:01]} Nf2+ {[%emt 0:00:00]} 52. Kd4 {[%emt 0:00:38]} g2 {[%emt 0:03:12]} 53. Kc5 {[%emt 0:02:02]} Nd1 {[%emt 0:00:39]} 54. Kb4 $2 {[%emt 0:00:56]} (54. Kxb5 $18 Nxc3+ 55. Kc4) 54... Ne3 $11 {[%emt 0:00:14]} 55. Kxb5 {[%emt 0:00:48]} Kf2 {[%emt 0:00:05]} 56. c4 {[%emt 0:01:13]} g1=Q {[%emt 0:00:06]} 57. Rxg1 {[%emt 0:00:07]} Kxg1 {[%emt 0:00:04]} 58. c5 {[%emt 0:01:34]} Nd5 {[%emt 0:00:37]} 1/2-1/2

[Event "BL 2024-25"]
[Site "Austria"]
[Date "2024.10.10"]
[Round "2.31"]
[White "Deuer, Marius"]
[Black "Kadric, Denis"]
[Result "1/2-1/2"]
[Annotator "TA"]
[ECO "E60"]
[WhiteElo "2477"]
[BlackElo "2558"]
[PlyCount "61"]
[EventDate "2024.08.28"]
[EventType "team-tourn"]
[EventCountry "AUT"]
[SourceTitle "playchess.com"]
[Source "ChessBase"]
[SourceQuality "1"]
[WhiteTeam "Salzburg"]
[BlackTeam "Pinggau-Friedberg"]
[TimeControl "40/5400+30:1800+30"]

{[%evp 13,61,33,37,43,49,49,61,37,47,17,37,27,0,13,18,9,28,27,19,21,7,2,-7,-11,14,15,23,30,33,27,97,6,13,0,165,2,6,5,16,18,108,102,95,98,115,114,98,101,99,-40]} 1. d4 {[%emt 0:00:03]} d6 {[%emt 0:00:05]} 2. Nf3 {[%emt 0:00:05]} Nf6 {[%emt 0:00:31]} 3. c4 {[%emt 0:00:07]} g6 {[%emt 0:00:04]} 4. Nc3 {[%emt 0:00:08]} Bg7 {[%emt 0:00:02]} 5. g3 {[%emt 0:00:06]} Bf5 {[%emt 0:00:17]} 6. Bg2 {[%emt 0:00:12]} Qc8 {[%emt 0:00:06]} 7. O-O {[%emt 0:00:15]} O-O {[%emt 0:00:02]} 8. Re1 {[%emt 0:00:12]} a5 {[%emt 0:00:03]} 9. Bf4 {[%emt 0:00:17]} Nc6 {[%emt 0:01:38]} 10. d5 {[%emt 0:11:40] Weiß steht etwas besser.} Nb4 {[%emt 0:00:39]} 11. Nd4 {[%emt 0:15:42] Verhindert Nc2} Bd7 {[%emt 0:01:56]} 12. e4 {[%emt 0:05:57]} e5 {[%emt 0:01:39]} 13. dxe6 {[%emt 0:00:08]} fxe6 {[%emt 0:00:02]} 14. Ndb5 {[%emt 0:09:27]} e5 {[%emt 0:04:32]} (14... Ng4 $5) 15. Bg5 {[%emt 0:01:12]} h6 {[%emt 0:00:16]} 16. Bc1 {[%emt 0:07:48]} Rf7 {[%emt 0:12:30]} 17. a3 {[%emt 0:04:28]} Na6 {[%emt 0:02:03]} 18. f3 {[%emt 0:03:26]} Qb8 {[%emt 0:04:50]} 19. Be3 {[%emt 0:03:03]} Ne8 {[%emt 0:10:22]} 20. Na4 {[%emt 0:04:35]} Be6 {[%emt 0:03:13]} 21. Qe2 {[%emt 0:01:51]} b6 {[%emt 0:01:01] [#]} (21... Nf6 $11) 22. Nbc3 {[%emt 0:06:35]} ({Günstiger ist} 22. f4 $1 $16) 22... Nc5 $11 {[%emt 0:01:37]} 23. f4 {[%emt 0:01:38]} Kh7 $2 {[%emt 0:22:54]} (23... Nxa4 $11 24. Nxa4 Nf6) 24. Rf1 $2 {[%emt 0:02:13]} (24. Nxc5 $18 bxc5 25. f5) 24... exf4 {[%emt 0:11:00]} 25. gxf4 {[%emt 0:05:13][%cal Of4f5] Und jetzt f5! wäre schön.} Nxa4 {[%emt 0:05:30]} 26. Nxa4 {[%emt 0:00:06][%cal Of4f5] [#] Und f5! würde nun gewinnen.} Nf6 {[%emt 0:00:50]} (26... Bd7 $11) 27. f5 $16 {[%emt 0:03:08] Weiß steht besser.} gxf5 {[%emt 0:01:27]} 28. exf5 {[%emt 0:00:06]} Bd7 {[%emt 0:00:01]} 29. Nc3 {[%emt 0:00:13] Weiß hat aktiveres Spiel.} Qf8 {[%emt 0:04:24]} 30. Bxa8 {[%emt 0:01:36]} Qxa8 {[%emt 0:00:01]} 31. Qg2 {[%emt 0:00:07] Gewichteter Fehlerwert: Weiß=0.23 (präzise) /Schwarz=0.27 (präzise) .  Verlustzug:     	---       	Schwarz=1     Gewinn verpasst:   	Weiß=1     	---        Fehler:       	Weiß=2     	Schwarz=2     Ungenau:       	Weiß=1     	---        OK:         	Weiß=6     	Schwarz=7     Bester:       	Weiß=3     	Schwarz=1} (31. Rf4 $16) 1/2-1/2

[Event "BL 2024-25"]
[Site "Austria"]
[Date "2024.10.10"]
[Round "2.32"]
[White "Petrov, Nikita"]
[Black "Rosner, Jonas"]
[Result "1-0"]
[Annotator "TA"]
[ECO "D45"]
[WhiteElo "2589"]
[BlackElo "2434"]
[PlyCount "69"]
[EventDate "2024.08.28"]
[EventType "team-tourn"]
[EventCountry "AUT"]
[SourceTitle "playchess.com"]
[Source "ChessBase"]
[SourceQuality "1"]
[WhiteTeam "Pinggau-Friedberg"]
[BlackTeam "Salzburg"]
[TimeControl "40/5400+30:1800+30"]

{[%evp 13,69,10,11,0,0,0,0,0,0,0,24,18,20,10,23,22,0,24,24,26,31,30,37,25,191,208,340,352,445,437,857,810,927,915,953,970,980,955,983,977,844,832,895,831,7997,988,1108,1094,6391,6391,29991,29992,29992,29993,29993,29994,29997,29998]} 1. Nf3 {[%emt 0:00:04]} d5 {[%emt 0:00:12]} 2. e3 {[%emt 0:00:44]} Nf6 {[%emt 0:00:41]} 3. c4 {[%emt 0:00:16]} c6 {[%emt 0:00:18]} 4. Nc3 {[%emt 0:01:40]} e6 {[%emt 0:00:44]} 5. d4 {[%emt 0:00:37]} Nbd7 {[%emt 0:00:47]} 6. Be2 {[%emt 0:00:43]} Bd6 {[%emt 0:01:00]} 7. O-O {[%emt 0:01:56]} O-O {[%emt 0:01:29]} 8. a4 {[%emt 0:00:27]} a5 {[%emt 0:11:13]} 9. b3 {[%emt 0:00:51]} b6 {[%emt 0:01:51]} 10. Bb2 {[%emt 0:01:13] The position is equal.} Bb7 {[%emt 0:00:52]} 11. Qc2 {[%emt 0:02:39]} Rc8 {[%emt 0:03:56]} 12. Rad1 {[%emt 0:18:59]} Qe7 {[%emt 0:03:40]} 13. e4 {[%emt 0:01:56]} Nxe4 {[%emt 0:00:57]} 14. Nxe4 {[%emt 0:00:08]} dxe4 {[%emt 0:00:05]} 15. Qxe4 {[%emt 0:00:05]} Nf6 {[%emt 0:02:55]} 16. Qh4 {[%emt 0:02:29]} h6 {[%emt 0:03:47]} 17. Bd3 {[%emt 0:05:05]} Bb4 {[%emt 0:02:56]} 18. g4 {[%emt 0:10:43][%cal Bg2g4,Bg4g5][%mdl 32]} c5 $2 {[%emt 0:08:58] [#] Loses the game.} (18... Nh7 $11) 19. d5 $1 $18 {[%emt 0:02:47]} exd5 {[%emt 0:01:35]} (19... Nxd5 {was called for.} 20. cxd5 Qxh4 21. Nxh4 exd5) 20. g5 {[%emt 0:04:06]} Ne4 {[%emt 0:12:53][%cal Rh6g5]} 21. Bxg7 $1 {[%emt 0:02:44] Bf6 is the strong threat.} Nxg5 {[%emt 0:06:56]} (21... f5 $142) 22. Qxh6 {[%emt 0:01:05][%csl Gg7][%cal Rh6h8]} (22. Nxg5 $2 Kxg7 23. Nf3 Qf6 24. Qxf6+ Kxf6 25. cxd5 Bxd5 $19) 22... Nxf3+ {[%emt 0:00:31]} 23. Kh1 {[%emt 0:00:03]} f5 {[%emt 0:00:27]} 24. Bxf8 {[%emt 0:01:38]} (24. Qh8+ Kf7 25. Qh5+ (25. Bxf8 $2 Rxf8 26. Qh5+ Ke6 $19) 25... Kg8 (25... Kxg7 $2 26. Rg1+ $18) 26. Qh8+ (26. Bxf8 Qf7 $11) 26... Kf7 27. Qh5+ (27. Bxf8 Rxf8 28. Qh5+ Ke6 $17) 27... Kg8 (27... Kxg7 $2 28. Rg1+ $18) 28. Bxf8 Qf7 29. Rg1+ (29. Qxf3 $2 dxc4 30. Bxc4 Bxf3+ $19) 29... Nxg1 30. Rxg1+ Kxf8 $11) 24... Qxf8 {[%emt 0:05:53] [#]} 25. Rg1+ $1 {[%emt 0:01:25][%mdl 512]} Nxg1 {[%emt 0:04:20]} 26. Rxg1+ {[%emt 0:00:05]} Kf7 {[%emt 0:00:06][%cal Bg8f7,Bf7f6,Bf6e5][%mdl 32]} 27. Qh7+ {[%emt 0:00:15]} (27. Qxb6 $2 {loses.} Bc6 (27... dxc4+ $2 {perishes.} 28. Qxb7+ Kf6 29. Qa6+ Ke5 30. Rg6 $18) 28. f3 Qd8 29. Qxd8 Rxd8 $19) 27... Kf6 {[%emt 0:04:00]} 28. Qxb7 {[%emt 0:02:15]} dxc4 {[%emt 0:04:06]} 29. Bxc4 {[%emt 0:09:28]} (29. Qxb6+ $142 Ke5 30. Bxc4) 29... Rd8 {[%emt 0:01:11] Black is weak on the light squares} 30. f4 {[%emt 0:03:55][%cal Ob7h7] White threatens Qh7! and mate.} Rd4 {[%emt 0:06:39]} 31. Bd5 {[%emt 0:01:31]} Rxf4 {[%emt 0:02:30]} 32. Qc6+ {[%emt 0:00:13] White mates.} Ke5 {[%emt 0:00:19]} 33. Qe6+ {[%emt 0:00:07]} Kd4 {[%emt 0:00:05]} 34. Rd1+ {[%emt 0:00:04]} Kc3 {[%emt 0:00:20]} 35. Qe3+ {[%emt 0:00:05] Weighted Error Value: White=0.04 (flawless) /Black=0.57.  Loses game:     	---       	Black=1      Mistake:       	---       	Black=2      OK:         	White=5     	Black=3      Best:        	White=2     	---        Strong:       	White=2     	---} 1-0

[Event "BL 2024-25"]
[Site "Austria"]
[Date "2024.10.10"]
[Round "2.34"]
[White "Sankalp Gupta"]
[Black "Goldbeck, Lars"]
[Result "1/2-1/2"]
[Annotator "TA"]
[ECO "B11"]
[WhiteElo "2534"]
[BlackElo "2372"]
[PlyCount "73"]
[EventDate "2024.08.28"]
[EventType "team-tourn"]
[EventCountry "AUT"]
[SourceTitle "playchess.com"]
[Source "ChessBase"]
[SourceQuality "1"]
[WhiteTeam "Pinggau-Friedberg"]
[BlackTeam "Salzburg"]
[TimeControl "40/5400+30:1800+30"]

{[%evp 10,73,21,24,36,-21,-20,-25,-33,-25,-13,-33,-24,-25,-35,-103,-94,-89,-102,-98,-18,-17,-21,-75,-86,-67,35,-45,-40,-41,-57,-34,-30,-54,-25,-39,0,-10,0,0,0,0,0,0,0,-24,0,0,0,0,0,0,0,0,0,0,0,0,0,0,0,0,0,0,0,0]} 1. e4 {[%emt 0:00:10]} c6 {[%emt 0:00:08]} 2. Nf3 {[%emt 0:00:05]} d5 {[%emt 0:00:17]} 3. Nc3 {[%emt 0:00:02]} dxe4 {[%emt 0:00:15]} 4. Nxe4 {[%emt 0:00:02]} Nf6 {[%emt 0:00:11]} 5. Qe2 {[%emt 1:32:41]} Nxe4 {[%emt 0:00:10]} 6. Qxe4 {[%emt 0:00:00]} Qa5 {[%emt 0:00:12]} 7. b3 {[%emt 0:00:00]} (7. b4 $14 Qf5 8. Qe3) 7... Bf5 $11 {[%emt 0:10:30]} 8. Qe3 {[%emt 0:00:00]} Bxc2 {[%emt 0:13:10] Black has an edge.} 9. Bb2 {[%emt 0:00:00]} Bg6 {[%emt 0:06:33]} 10. h4 {[%emt 0:00:00][%cal Oh4h5]} h5 {[%emt 0:25:56]} 11. Bc4 {[%emt 0:00:00]} (11. Bc3 {simplifies} Qb6 12. Ne5 Qxe3+ 13. dxe3 Bf5 14. f3) 11... Nd7 {[%emt 0:03:28]} 12. Ng5 {[%emt 0:00:00]} ({White should try} 12. O-O $15) 12... Nb6 $17 {[%emt 0:04:05]} 13. O-O {[%emt 0:00:00]} Nxc4 {[%emt 0:01:14]} 14. bxc4 {[%emt 0:00:00] [#]} O-O-O {[%emt 0:00:39]} (14... Qb4 $1 $17 {[%cal Rb4b2]} 15. Bc3 Qxc4) 15. Bc3 $11 {[%emt 0:00:00]} Qb6 {[%emt 0:02:10]} 16. Qf4 {[%emt 0:00:00] [#]} (16. d4 $11) 16... e5 $1 $17 {[%emt 0:04:00]} 17. Qxe5 {[%emt 0:00:00][%cal Og5f7] Black must now prevent Nxf7!} Bc5 {[%emt 0:05:42]} (17... f6 $15 18. Qe6+ Rd7) 18. Qxg7 {[%emt 0:00:00]} (18. Nxf7 $1 $14 Bxf7 19. Qf5+ Rd7 20. Rab1) 18... Bd4 $15 {[%emt 0:00:23]} 19. Bxd4 {[%emt 0:00:00]} Qxd4 {[%emt 0:00:02]} 20. Qxd4 {[%emt 0:00:00]} Rxd4 {[%emt 0:00:02]} 21. Rfe1 {[%emt 0:00:00]} Rxd2 {[%emt 0:04:14]} 22. Re7 {[%emt 0:00:00][%cal Og2g3]} Rd7 {[%emt 0:04:12]} 23. Rae1 {[%emt 0:00:00]} Rhd8 {[%emt 0:03:43]} 24. f3 {[%emt 0:00:00]} f6 {[%emt 0:04:06]} 25. Rxd7 {[%emt 0:00:00]} Rxd7 $11 {[%emt 0:00:21][%mdl 4096] Endgame. KRB-KRN} 26. Ne4 {[%emt 0:00:00]} Rd4 {[%emt 0:00:46]} 27. Nxf6 {[%emt 0:00:00]} Rxc4 {[%emt 0:01:57]} 28. g4 {[%emt 0:00:00] The position is equal.} Rf4 {[%emt 0:01:05][%csl LRf3,LRf6]} 29. Nxh5 {[%emt 0:00:00]} Bxh5 {[%emt 0:01:23]} 30. gxh5 {[%emt 0:00:00] And now Kg2 would win. KR-KR} Kd7 {[%emt 0:01:53]} 31. Kg2 {[%emt 0:00:00] Hoping for Kg3.} Rxh4 {[%emt 0:00:52]} 32. Re5 {[%emt 0:02:56]} Kd6 {[%emt 0:00:31]} 33. Rg5 {[%emt 0:00:02]} c5 {[%emt 0:00:15]} 34. Kg3 {[%emt 0:00:01]} Rh1 {[%emt 0:00:13]} 35. Kg2 {[%emt 0:00:17]} Rh4 {[%emt 0:00:07]} 36. Kg3 {[%emt 0:00:02]} Rh1 {[%emt 0:00:06]} 37. Kg2 {[%emt 0:00:12] Weighted Error Value: White=0.14 (very precise) /Black=0.14 (very precise) .  Mistake:       	White=4     	Black=2      Inaccurate:     	---       	Black=2      OK:         	White=16    	Black=9      Best:        	White=1     	Black=6      Brilliant:      	---       	Black=1} 1/2-1/2

[Event "BL 2024-25"]
[Site "Austria"]
[Date "2024.10.10"]
[Round "2.35"]
[White "Hinterreiter, Markus"]
[Black "Ivanisevic, Ivan"]
[Result "0-1"]
[Annotator "TA"]
[ECO "A06"]
[WhiteElo "2269"]
[BlackElo "2519"]
[PlyCount "120"]
[EventDate "2024.08.28"]
[EventType "team-tourn"]
[EventCountry "AUT"]
[SourceTitle "playchess.com"]
[Source "ChessBase"]
[SourceQuality "1"]
[WhiteTeam "Salzburg"]
[BlackTeam "Pinggau-Friedberg"]
[TimeControl "40/5400+30:1800+30"]

{[%evp 14,120,16,0,16,14,9,6,17,2,28,23,39,9,28,12,29,0,23,26,64,60,52,56,87,26,27,0,0,0,20,0,0,0,0,0,0,-14,-32,-38,0,-16,-31,-24,-26,-145,-102,-108,-91,-101,-110,-100,-106,-114,-114,-116,-120,-103,-108,-125,-102,-123,-120,-131,-126,-127,-127,-137,-107,-125,-128,-207,-186,-197,-187,-205,-207,-302,-295,-413,-257,-258,-253,-399,-170,-189,-187,-201,-200,-191,-193,-245,-252,-246,-254,-296,-314,-308,-312,-717,-716,-695,-701,-774,-764,-29984,-29985,-29995,-1188]} 1. Nf3 {[%emt 0:00:06]} d5 {[%emt 0:00:06]} 2. b3 {[%emt 0:01:22]} c5 {[%emt 0:00:36]} 3. e3 {[%emt 0:00:46]} f6 {[%emt 0:00:08]} 4. d4 {[%emt 0:03:16]} cxd4 {[%emt 0:00:06]} 5. exd4 {[%emt 0:00:19]} Nc6 {[%emt 0:00:06]} 6. Bb2 {[%emt 0:02:48] A06: Réti Opening: 1 Nf3 d5.} Bg4 {[%emt 0:04:37]} 7. Nbd2 {[%emt 0:04:46]} e6 {[%emt 0:00:41]} 8. h3 {[%emt 0:09:30]} Bh5 {[%emt 0:00:09]} 9. Bd3 {[%emt 0:01:29]} Bd6 {[%emt 0:03:17]} 10. O-O {[%emt 0:05:47]} Nge7 {[%emt 0:01:17]} 11. Re1 {[%emt 0:01:57]} Bf7 $146 {[%emt 0:01:23]} ({Predecessor:} 11... Qd7 12. Qe2 Bf7 13. c4 O-O 14. a3 a5 15. Nf1 Rae8 16. Qc2 h6 17. Ne3 Bb8 {0-1 Anton Guijarro,D (2666)-Dobrov,V (2515) Wch Blitz Riadh 2017 (11)}) 12. c4 {[%emt 0:03:43]} O-O {[%emt 0:00:32]} 13. Rc1 {[%emt 0:04:23]} Ng6 {[%emt 0:01:51]} 14. a3 {[%emt 0:04:40]} a5 {[%emt 0:00:35]} 15. Nb1 {[%emt 0:05:42]} Qd7 {[%emt 0:02:44]} 16. Nc3 {[%emt 0:01:22]} Nf4 {[%emt 0:00:28]} 17. Bf1 $1 {[%emt 0:05:08]} Rad8 {[%emt 0:04:51]} 18. g3 {[%emt 0:03:50]} Ng6 {[%emt 0:01:21]} 19. cxd5 {[%emt 0:03:29]} (19. h4 $16) 19... exd5 $11 {[%emt 0:00:09]} 20. Nb5 {[%emt 0:02:28]} Bb8 {[%emt 0:00:29]} 21. a4 {[%emt 0:01:12]} Rfe8 {[%emt 0:00:33]} 22. Ba3 {[%emt 0:02:42]} Be6 {[%emt 0:04:21]} 23. h4 {[%emt 0:01:40]} Bg4 {[%emt 0:00:57]} 24. Bg2 {[%emt 0:01:49]} Re4 {[%emt 0:09:20]} 25. Qd2 {[%emt 0:00:53]} Bh3 {[%emt 0:03:57]} 26. Bh1 $1 {[%emt 0:08:50]} Qf5 {[%emt 0:00:51]} (26... Nxh4 $5 27. Nxh4 Rxh4 $14) 27. Nh2 {[%emt 0:05:50]} Rxe1+ {[%emt 0:01:24]} 28. Rxe1 {[%emt 0:00:23]} Nxh4 {[%emt 0:00:16]} 29. Qe3 {[%emt 0:04:44]} (29. Be7 $11 Rd7 30. Bc5) 29... h5 {[%emt 0:03:10]} 30. Nf3 {[%emt 0:01:52]} (30. gxh4 $2 Qg6+ $19) 30... Ng6 {[%emt 0:01:11]} 31. Bg2 {[%emt 0:01:02]} Bxg2 {[%emt 0:03:51]} 32. Kxg2 {[%emt 0:00:06]} Qg4 {[%emt 0:01:50]} 33. Qe6+ {[%emt 0:01:32] [#]} Qxe6 $1 {[%emt 0:00:14]} 34. Rxe6 {[%emt 0:00:02]} Kf7 {[%emt 0:00:09]} 35. Re1 {[%emt 0:00:39]} Nge7 {[%emt 0:00:17]} 36. Bc5 {[%emt 0:03:25]} g6 {[%emt 0:03:08]} 37. Kf1 {[%emt 0:02:38]} Nf5 {[%emt 0:00:57]} 38. Bb6 {[%emt 0:01:25]} Rd7 {[%emt 0:00:33]} 39. Rc1 {[%emt 0:01:16]} g5 {[%emt 0:01:58]} 40. Bc5 {[%emt 0:00:55]} h4 {[%emt 0:00:35]} 41. gxh4 {[%emt 0:02:49]} g4 {[%emt 0:05:15]} ({Much worse is} 41... Nxh4 $6 42. Nxh4 gxh4 43. Kg2 $11) 42. Nd2 {[%emt 0:02:15]} (42. Ne1 $17) 42... Nxh4 $19 {[%emt 0:00:39]} 43. Ke2 {[%emt 0:00:42]} Ng6 {[%emt 0:00:18]} 44. Rh1 {[%emt 0:02:14]} Nf4+ {[%emt 0:02:37]} 45. Kd1 {[%emt 0:01:32]} (45. Kf1 {was called for.}) 45... Nh3 $19 {[%emt 0:01:45]} 46. Ke1 {[%emt 0:02:30]} Kg6 {[%emt 0:00:53]} 47. Nf1 {[%emt 0:00:52]} Bf4 {[%emt 0:02:56]} 48. Nc3 {[%emt 0:01:13]} (48. Ne3 $142 Bxe3 49. fxe3) 48... Rd8 {[%emt 0:04:54]} (48... b6 $142 49. Bxb6 Nb4) 49. Ne3 $19 {[%emt 0:01:46]} Bxe3 {[%emt 0:01:07]} 50. fxe3 {[%emt 0:00:03]} f5 {[%emt 0:00:39]} 51. Bb6 {[%emt 0:00:54]} Rd7 {[%emt 0:00:14]} 52. Kf1 {[%emt 0:01:20]} (52. Ne2 $142) 52... f4 $19 {[%emt 0:02:36]} 53. exf4 {[%emt 0:00:39]} Kf5 {[%emt 0:00:26]} ({Resist} 53... Nxf4 54. Rh8) 54. Kg2 {[%emt 0:01:07]} Nxf4+ {[%emt 0:00:41]} (54... Kxf4 55. Rf1+ Kg5 56. Ne2 $11) 55. Kf2 {[%emt 0:00:57] [#]} Rg7 $1 {[%emt 0:03:07]} 56. Rh8 $2 {[%emt 0:01:40]} (56. Ne2) 56... g3+ $19 {[%emt 0:00:14]} 57. Kg1 {[%emt 0:00:11]} Kg4 {[%emt 0:01:34]} 58. Rf8 {[%emt 0:01:34]} Rh7 {[%emt 0:04:02]} 59. Bc5 {[%emt 0:01:11]} Rh2 {[%emt 0:00:59]} 60. Rf7 {[%emt 0:01:10]} Nh3+ {[%emt 0:00:10]} 0-1